bitfinex/quotes_SOLUSD_20250226
["timestamp","ask_amount","ask_price","bid_price","bid_amount"]
[1740546439245,0.0001,143.13,143.12,108.30062886]
[1740546440652,0.0001,143.15,143.13,18.64964886]
[1740546440853,0.0001,143.15,143.14,6.9861]
[1740546443082,0.0001,143.15,143.13,6.9866]
[1740546444257,0.0001,143.15,143.14,0.25098]
[1740546445379,0.0001,143.15,143.14,6.9861]
[1740546446449,0.0001,143.15,143.13,7.23758]
[1740546446978,0.0001,143.15,143.13,6.9866]
[1740546449153,0.0001,143.15,143.14,0.25098]
[1740546450694,0.0001,143.15,143.14,7.23708]
[1740546453082,0.0001,143.16,143.14,25.88672886]
[1740546453386,0.03,143.2,143.16,18.90062886]
[1740546454551,0.03,143.2,143.17,24.4464]
[1740546454965,0.03,143.2,143.17,6.9847]
[1740546456785,0.03,143.2,143.16,7.23608]
[1740546456988,0.03,143.2,143.16,24.69898]
[1740546459196,0.03,143.2,143.16,24.448]
[1740546459602,1.6578,143.2,143.16,6.9851]
[1740546460891,1.6578,143.2,143.14,0.12549]
[1740546461092,1.6578,143.2,143.15,6.9856]
[1740546461409,0.03,143.2,143.15,6.9856]
[1740546462209,81.1,143.19,143.15,6.9856]
[1740546463102,81.1,143.19,143.14,6.9861]
[1740546463305,1.5756,143.17,143.11,6.9876]
[1740546463513,82.6756,143.17,143.11,6.9876]
[1740546463983,81.1,143.16,143.11,6.9876]
[1740546464305,81.1,143.15,143.11,6.9876]
[1740546465204,81.1,143.15,143.09,7.0516]
[1740546465411,81.1,143.14,143.09,7.0516]
[1740546467209,81.1,143.14,143.11,0.063]
[1740546468716,6.3468,143.12,143.11,0.063]
[1740546470504,81.1,143.13,143.11,0.063]
[1740546470689,6.5359,143.16,143.11,0.18849]
[1740546471011,0.03,143.16,143.12,0.12549]
[1740546473418,0.03,143.16,143.12,6.987]
[1740546475516,0.03,143.16,143.11,89.9505]
[1740546476408,81.1,143.15,143.11,0.063]
[1740546477113,81.1,143.15,143.11,7.0506]
[1740546477713,81.1,143.15,143.11,0.063]
[1740546480818,0.03,143.16,143.11,0.063]
[1740546480819,0.03,143.16,143.11,24.5196]
[1740546481113,0.03,143.16,143.12,0.25098]
[1740546482027,0.03,143.16,143.14,0.25098]
[1740546482196,0.03,143.16,143.14,18.90062886]
[1740546482395,0.03,143.2,143.14,143.89062886]
[1740546482897,0.03,143.2,143.18,6.9842]
[1740546483598,0.03,143.2,143.19,0.25098]
[1740546484725,0.03,143.2,143.19,7.23468]
[1740546486829,0.03,143.2,143.19,6.9837]
[1740546488444,0.03,143.2,143.18,6.9842]
[1740546490215,0.03,143.2,143.19,0.25098]
[1740546490413,0.03,143.2,143.19,7.23468]
[1740546490948,0.0001,143.2,143.19,25.88432886]
[1740546492450,0.0001,143.2,143.19,7.23468]
[1740546494423,0.0001,143.2,143.19,6.9837]
[1740546495916,0.0001,143.2,143.14,82.9]
[1740546496227,0.0001,143.2,143.15,7.11109]
[1740546496543,81.1001,143.2,143.15,6.9856]
[1740546500140,0.03,143.24,143.19,20.25098]
[1740546500339,0.03,143.27,143.26,20.25098]
[1740546500532,0.03,143.31,143.28,0.25098]
[1740546501129,0.03,143.31,143.28,101.80062886]
[1740546501329,0.03,143.31,143.28,83.15098]
[1740546502854,0.03,143.31,143.3,0.25098]
[1740546504029,0.03,143.31,143.29,3.54560624]
[1740546504256,0.03,143.31,143.29,23.54560624]
[1740546504444,0.03,143.31,143.29,3.54560624]
[1740546506751,0.03,143.31,143.29,10.52440624]
[1740546508250,0.03,143.31,143.3,0.25098]
[1740546508747,6.391,143.39,143.34,0.25098]
[1740546508948,87.6753,143.46,143.38,20.0]
[1740546509257,6.5753,143.46,143.4,18.77513886]
[1740546509459,6.5753,143.46,143.4,6.46]
[1740546509756,81.1,143.45,143.4,6.46]
[1740546510152,6.5753,143.46,143.4,6.46]
[1740546510531,81.1,143.45,143.35,6.9759]
[1740546510738,18.64964886,143.44,143.36,3.52374889]
[1740546511058,6.972,143.43,143.37,20.0]
[1740546511235,81.1,143.42,143.36,3.52374889]
[1740546511438,81.1,143.42,143.34,6.48]
[1740546511657,81.1,143.41,143.34,6.48]
[1740546511953,81.1,143.41,143.34,3.43631963]
[1740546512159,8.0085,143.4,143.33,6.48]
[1740546512954,6.9739,143.39,143.31,86.384078]
[1740546513264,81.1,143.38,143.29,13.58429]
[1740546514467,88.0746,143.38,143.29,13.58429]
[1740546515241,88.0746,143.38,143.29,6.48]
[1740546515442,105.5107,143.38,143.28,13.69018]
[1740546515647,81.1,143.37,143.29,3.42318712]
[1740546517459,6.9754,143.36,143.29,3.42318712]
[1740546517642,88.0754,143.36,143.28,6.46]
[1740546517847,6.1441,143.35,143.26,96.3398]
[1740546518157,81.1,143.34,143.26,13.4398]
[1740546518331,81.1,143.34,143.27,3.81663752]
[1740546519555,88.0766,143.34,143.28,6.9793]
[1740546519757,88.0766,143.34,143.27,6.9796]
[1740546519952,88.0766,143.34,143.26,3.42299192]
[1740546520958,88.0766,143.34,143.27,6.9798]
[1740546521262,88.0766,143.34,143.26,3.42299192]
[1740546521452,1.5997,143.33,143.26,10.40309192]
[1740546521758,81.1,143.32,143.23,6.46]
[1740546521959,81.1,143.31,143.23,6.46]
[1740546523067,6.2199,143.3,143.23,0.25098]
[1740546523563,81.1,143.29,143.23,0.12549]
[1740546523743,81.1,143.29,143.23,0.25098]
[1740546525150,81.1,143.29,143.24,6.9812]
[1740546526162,81.1,143.29,143.25,0.25098]
[1740546527800,6.2199,143.3,143.26,6.9803]
[1740546527970,6.2199,143.3,143.23,13.4417]
[1740546528273,81.1,143.29,143.23,13.4417]
[1740546528776,80.98821828,143.29,143.23,13.4417]
[1740546529953,80.98821828,143.28,143.23,13.4417]
[1740546530185,80.98821828,143.27,143.23,6.9817]
[1740546530481,82.56121828,143.26,143.22,0.063]
[1740546530682,80.98821828,143.25,143.22,0.063]
[1740546533793,1.573,143.26,143.22,7.0452]
[1740546536496,80.98821828,143.28,143.22,24.5008]
[1740546536667,1.631,143.29,143.23,0.25098]
[1740546536874,1.631,143.29,143.23,25.34062886]
[1740546537885,1.631,143.29,143.24,24.4344]
[1740546538083,80.98821828,143.34,143.27,20.0]
[1740546538289,80.98821828,143.33,143.27,20.0]
[1740546538484,80.98821828,143.33,143.28,0.25098]
[1740546538797,80.98821828,143.33,143.27,20.0]
[1740546539782,80.98821828,143.33,143.28,6.9793]
[1740546540593,80.98821828,143.32,143.23,6.46]
[1740546540785,1.6159,143.31,143.23,13.4417]
[1740546541695,8.5941,143.31,143.23,13.4417]
[1740546544210,1.6159,143.31,143.23,30.8961]
[1740546545308,1.6159,143.31,143.24,0.25098]
[1740546545487,1.6159,143.31,143.25,6.9808]
[1740546545813,80.98821828,143.3,143.25,6.9808]
[1740546546518,80.98821828,143.3,143.25,24.4328]
[1740546546722,80.98821828,143.34,143.26,0.25098]
[1740546547120,6.6079,143.35,143.29,0.25098]
[1740546547328,0.03,143.35,143.29,26.69098]
[1740546547821,0.03,143.35,143.3,6.9783]
[1740546549020,0.03,143.35,143.3,24.4242]
[1740546550192,0.03,143.35,143.3,6.9783]
[1740546550518,0.03,143.35,143.3,10.41935621]
[1740546551787,80.98821828,143.34,143.3,10.41935621]
[1740546554923,80.98821828,143.33,143.29,6.44]
[1740546555218,80.98821828,143.33,143.28,6.979]
[1740546556025,80.98821828,143.33,143.27,6.9798]
[1740546556508,80.98821828,143.33,143.27,24.4293]
[1740546556721,80.98821828,143.33,143.28,0.25098]
[1740546556940,0.03,143.35,143.28,18.90062886]
[1740546558131,0.03,143.35,143.3,0.25098]
[1740546560148,0.03,143.35,143.31,6.9778]
[1740546562741,0.03,143.35,143.32,0.25098]
[1740546563441,80.98821828,143.43,143.37,0.25098]
[1740546563947,6.5172,143.46,143.37,83.15098]
[1740546564242,13.4878,143.46,143.37,83.15098]
[1740546564451,13.4878,143.46,143.38,6.9744]
[1740546565315,6.5172,143.46,143.38,10.52582148]
[1740546566046,80.98821828,143.47,143.39,18.90062886]
[1740546566741,87.95841828,143.47,143.4,6.9735]
[1740546567041,80.98821828,143.46,143.4,6.9735]
[1740546569134,80.98821828,143.46,143.42,6.9725]
[1740546571321,80.98821828,143.46,143.4,1.88438]
[1740546571521,80.98821828,143.46,143.41,6.973]
[1740546571842,80.98821828,143.45,143.38,3.55142148]
[1740546572139,80.98821828,143.45,143.36,1.5698]
[1740546572345,80.98821828,143.44,143.36,1.5698]
[1740546573145,87.95991828,143.44,143.37,6.9749]
[1740546573345,80.98821828,143.43,143.36,6.9753]
[1740546574228,80.98821828,143.42,143.36,6.9753]
[1740546574428,80.98821828,143.41,143.36,6.9753]
[1740546576454,80.98821828,143.41,143.35,3.55951897]
[1740546577857,80.98821828,143.41,143.36,6.9754]
[1740546578539,80.98821828,143.4,143.36,6.9754]
[1740546588266,80.98821828,143.4,143.36,24.414]
[1740546590291,80.98821828,143.43,143.36,24.414]
[1740546591772,87.96031828,143.43,143.36,24.414]
[1740546592175,87.96031828,143.43,143.36,6.9754]
[1740546596192,80.98821828,143.42,143.36,6.9754]
[1740546602292,80.98821828,143.41,143.36,6.9754]
[1740546604796,0.03,143.43,143.37,6.65098]
[1740546604968,0.03,143.43,143.39,0.25098]
[1740546605374,0.03,143.43,143.39,48.72078]
[1740546605787,0.03,143.43,143.4,18.64964886]
[1740546606376,0.03,143.43,143.39,89.2798]
[1740546606578,0.03,143.43,143.4,6.9735]
[1740546607379,0.03,143.43,143.4,27.8558011]
[1740546607579,0.03,143.43,143.41,0.25098]
[1740546608804,0.03,143.43,143.42,7.22348]
[1740546612797,0.03,143.43,143.42,13.62348]
[1740546615308,0.03,143.43,143.42,115.17312886]
[1740546615484,0.0001,143.43,143.42,157.26312886]
[1740546617200,0.0001,143.44,143.43,18.90062886]
[1740546617502,0.1117529,143.49,143.47,0.25098]
[1740546617714,0.1117529,143.49,143.47,6.65098]
[1740546617918,0.1117529,143.49,143.48,20.25098]
[1740546618788,0.1117529,143.49,143.48,27.22058]
[1740546619207,5.29e-05,143.49,143.48,45.87022886]
[1740546619389,5.29e-05,143.5,143.49,0.25098]
[1740546619587,5.29e-05,143.5,143.49,83.15098]
[1740546620088,5.29e-05,143.5,143.49,101.80062886]
[1740546620293,5.29e-05,143.5,143.49,103.33492886]
[1740546621010,5.29e-05,143.5,143.49,110.30402886]
[1740546621533,5.29e-05,143.5,143.49,7.22008]
[1740546621822,5.29e-05,143.5,143.49,6.9691]
[1740546622425,5.29e-05,143.5,143.49,7.22008]
[1740546623094,5.29e-05,143.5,143.49,6.9691]
[1740546624221,5.29e-05,143.5,143.45,1.6104]
[1740546624405,5.29e-05,143.5,143.45,13.371]
[1740546628525,80.98821828,143.49,143.44,7.0344]
[1740546629526,80.98821828,143.49,143.44,0.063]
[1740546631518,80.98821828,143.48,143.44,0.063]
[1740546632210,80.98821828,143.47,143.44,0.063]
[1740546632415,87.63531828,143.46,143.44,0.063]
[1740546633425,6.6471,143.46,143.44,0.063]
[1740546634027,80.98821828,143.49,143.44,0.063]
[1740546635498,80.98821828,143.49,143.44,24.4633]
[1740546635717,6.4178529,143.5,143.45,0.25098]
[1740546635904,5.29e-05,143.5,143.45,0.25098]
[1740546636103,5.29e-05,143.5,143.47,20.0]
[1740546636797,5.29e-05,143.5,143.48,0.25098]
[1740546636999,5.29e-05,143.5,143.48,20.25098]
[1740546637529,5.29e-05,143.5,143.49,7.22008]
[1740546639023,5.29e-05,143.5,143.49,6.9691]
[1740546639524,5.29e-05,143.5,143.47,24.3951]
[1740546639698,5.29e-05,143.5,143.47,26.97]
[1740546639901,5.29e-05,143.5,143.47,6.97]
[1740546641529,5.29e-05,143.5,143.46,17.4261]
[1740546642028,6.4653529,143.5,143.45,6.971]
[1740546642332,80.98821828,143.49,143.45,6.971]
[1740546643329,80.98821828,143.49,143.44,0.063]
[1740546643532,80.98821828,143.48,143.44,0.063]
[1740546644532,80.98821828,143.47,143.44,0.063]
[1740546646817,80.98821828,143.46,143.44,0.063]
[1740546649640,80.98821828,143.45,143.44,0.063]
[1740546655329,18.64964886,143.46,143.44,0.063]
[1740546656610,25.62034886,143.46,143.44,0.063]
[1740546657425,26.62034886,143.46,143.44,0.063]
[1740546658512,8.34689,143.45,143.44,0.063]
[1740546658733,7.7878,143.45,143.44,0.063]
[1740546659236,8.7878,143.45,143.44,0.063]
[1740546660809,15.7588,143.45,143.44,0.063]
[1740546661132,14.7588,143.45,143.44,0.063]
[1740546662035,7.7878,143.45,143.44,0.063]
[1740546663242,14.7588,143.45,143.38,6.9744]
[1740546663445,15.7588,143.45,143.38,6.9744]
[1740546663620,22.1588,143.45,143.38,6.9744]
[1740546664247,22.1588,143.45,143.36,17.4376]
[1740546664435,20.0,143.42,143.36,17.4376]
[1740546665130,20.0,143.42,143.35,7.0389]
[1740546667246,20.0,143.42,143.35,24.4787]
[1740546670647,81.1,143.41,143.35,24.4787]
[1740546672846,21.0,143.37,143.35,0.063]
[1740546673051,81.1,143.36,143.29,82.963]
[1740546673256,87.2755,143.38,143.3,20.44032886]
[1740546673423,81.1,143.38,143.3,20.44032886]
[1740546674642,81.1,143.38,143.3,1.79068]
[1740546674841,88.0745,143.38,143.3,1.79068]
[1740546675441,88.0745,143.38,143.3,8.76898]
[1740546675746,88.0745,143.38,143.3,1.79068]
[1740546675947,20.64964886,143.35,143.29,0.063]
[1740546676122,3.54451268,143.32,143.29,0.063]
[1740546676324,101.1,143.31,143.29,0.063]
[1740546676521,102.1,143.31,143.29,0.063]
[1740546676757,6.1292,143.3,143.29,0.063]
[1740546677622,13.1075,143.3,143.29,0.063]
[1740546677853,6.1292,143.3,143.29,0.063]
[1740546678952,6.1292,143.3,143.28,0.063]
[1740546678953,6.1292,143.3,143.22,89.57879223]
[1740546679147,81.1,143.29,143.22,6.9821]
[1740546680253,81.1,143.29,143.21,0.25098]
[1740546680550,81.1,143.29,143.21,7.23358]
[1740546682842,81.1,143.29,143.21,7.29658]
[1740546683040,81.1,143.28,143.21,7.29658]
[1740546684130,81.1,143.27,143.21,0.063]
[1740546684331,82.7575,143.26,143.21,0.063]
[1740546684548,81.1,143.25,143.21,0.063]
[1740546685359,87.7567,143.24,143.21,0.063]
[1740546685562,81.1,143.23,143.21,0.063]
[1740546690174,81.1,143.22,143.21,0.063]
[1740546690338,1.0,143.19,143.15,0.063]
[1740546690543,101.1,143.18,143.15,0.063]
[1740546691541,107.5,143.18,143.15,0.063]
[1740546692255,3.43093291,143.17,143.15,0.063]
[1740546692578,107.5,143.18,143.15,0.063]
[1740546694263,81.1,143.17,143.15,0.063]
[1740546695987,99.74964886,143.16,143.15,0.063]
[1740546696191,18.64964886,143.16,143.15,0.063]
[1740546696702,7.5726,143.16,143.15,0.063]
[1740546697981,6.0623,143.16,143.15,0.063]
[1740546703391,135.82,143.18,143.15,0.063]
[1740546703595,129.42,143.18,143.15,0.063]
[1740546704214,0.03,143.2,143.15,0.063]
[1740546704502,0.03,143.2,143.16,0.25098]
[1740546705369,0.03,143.2,143.17,24.4464]
[1740546707978,0.03,143.2,143.17,6.9847]
[1740546708899,0.03,143.2,143.16,7.23608]
[1740546709279,0.03,143.2,143.16,6.9851]
[1740546710382,0.03,143.2,143.16,24.448]
[1740546712710,0.03,143.2,143.16,6.9851]
[1740546713082,0.03,143.2,143.15,7.0486]
[1740546715603,81.1,143.19,143.15,0.063]
[1740546715907,81.1,143.18,143.15,0.063]
[1740546716107,81.1,143.17,143.15,0.063]
[1740546716315,81.1,143.16,143.15,0.063]
[1740546717390,88.0851,143.16,143.15,0.063]
[1740546717910,6.9851,143.16,143.15,0.063]
[1740546720289,25.63434886,143.17,143.15,0.063]
[1740546720488,26.63434886,143.17,143.15,0.063]
[1740546721412,25.63434886,143.17,143.15,0.063]
[1740546723111,10.46991514,143.16,143.15,0.063]
[1740546723522,13.3846,143.18,143.15,0.063]
[1740546723690,14.3846,143.18,143.15,0.063]
[1740546725020,20.0,143.16,143.15,0.063]
[1740546725320,13.3846,143.18,143.15,0.063]
[1740546727007,20.0,143.16,143.15,0.063]
[1740546727205,6.9846,143.18,143.15,0.063]
[1740546727408,129.46,143.19,143.15,0.063]
[1740546732321,137.4437,143.19,143.15,0.063]
[1740546732520,1.0,143.13,143.09,0.063]
[1740546732836,19.64964886,143.11,143.08,0.063]
[1740546732996,45.63824886,143.09,143.08,0.063]
[1740546733201,46.63824886,143.09,143.08,0.063]
[1740546734723,18.64964886,143.08,143.07,0.063]
[1740546734926,18.77513886,143.02,142.96,19.35180972]
[1740546735101,18.64964886,143.0,142.97,6.999]
[1740546735304,18.64964886,142.98,142.96,19.35180972]
[1740546735506,18.64964886,142.98,142.96,0.063]
[1740546735507,81.1,142.97,142.96,0.063]
[1740546736022,81.1,142.99,142.96,0.063]
[1740546738221,82.1,142.99,142.96,0.063]
[1740546738417,81.1,142.99,142.96,0.063]
[1740546740727,81.1,142.98,142.96,0.063]
[1740546740934,81.1,142.97,142.96,0.063]
[1740546742102,0.03,142.99,142.96,0.063]
[1740546742103,20.0,142.98,142.96,0.063]
[1740546742304,18.64964886,142.96,142.91,0.063]
[1740546742510,81.1,142.95,142.91,0.063]
[1740546744331,84.59134969,142.95,142.91,0.063]
[1740546745728,39.77513886,142.91,142.9,0.063]
[1740546745928,46.17513886,142.91,142.9,0.063]
[1740546746135,53.17253886,142.91,142.9,0.063]
[1740546746524,55.59562804,142.91,142.9,0.063]
[1740546746834,56.59562804,142.91,142.9,0.063]
[1740546747028,55.59562804,142.91,142.9,0.063]
[1740546747826,56.72111804,142.91,142.9,0.063]
[1740546748028,19.64964886,142.9,142.82,0.063]
[1740546748227,99.74964886,142.9,142.82,0.063]
[1740546748625,81.1,142.9,142.82,0.063]
[1740546749636,81.1,142.9,142.84,0.12549]
[1740546750741,81.1,142.9,142.83,18.90062886]
[1740546751119,81.1,142.9,142.83,0.25098]
[1740546753353,81.1,142.9,142.82,89.07969223]
[1740546753354,81.1,142.89,142.82,6.483]
[1740546753651,81.1,142.88,142.82,0.063]
[1740546753844,81.1,142.87,142.82,0.063]
[1740546754146,81.1,142.86,142.83,0.063]
[1740546754523,81.1,142.85,142.83,0.063]
[1740546756327,81.1,142.84,142.83,0.063]
[1740546757057,6.0468,142.86,142.83,0.063]
[1740546757223,7.0003,142.85,142.83,0.063]
[1740546759331,7.0003,142.85,142.82,0.063]
[1740546759940,18.64964886,142.84,142.82,0.063]
[1740546760144,1.12549,142.83,142.76,0.063]
[1740546760944,18.77513886,142.79,142.76,0.063]
[1740546761140,25.21513886,142.79,142.76,0.063]
[1740546761457,26.21513886,142.79,142.76,0.063]
[1740546761845,33.21853886,142.79,142.76,0.063]
[1740546762148,26.21513886,142.79,142.76,0.063]
[1740546762340,6.44,142.79,142.76,0.063]
[1740546762932,129.72,142.81,142.72,20.25098]
[1740546763862,129.72,142.81,142.73,7.0062]
[1740546764534,129.72,142.81,142.72,27.25758]
[1740546769038,210.82,142.81,142.72,27.25758]
[1740546769277,81.1,142.83,142.76,20.0]
[1740546769452,1.0,142.88,142.76,20.0]
[1740546769453,81.1,142.82,142.76,20.0]
[1740546769771,81.1,142.82,142.77,7.0042]
[1740546770651,81.1,142.82,142.77,0.25098]
[1740546770847,81.1,142.85,142.76,0.25098]
[1740546771168,81.1,142.85,142.76,1.25098]
[1740546771345,81.1,142.85,142.76,0.25098]
[1740546771552,81.1,142.85,142.76,1.25098]
[1740546771954,81.1,142.85,142.76,59.79138]
[1740546772367,81.1,142.85,142.77,18.64964886]
[1740546772742,81.1,142.85,142.78,6.69098]
[1740546773473,135.8524,142.88,142.8,0.25098]
[1740546773767,210.86,142.88,142.84,7.0008]
[1740546774065,81.1,142.91,142.85,0.25098]
[1740546775774,81.1,142.91,142.85,7.0003]
[1740546775974,81.1,142.9,142.83,13.4409]
[1740546776175,81.1,142.89,142.83,7.0009]
[1740546776678,87.54,142.89,142.83,7.0009]
[1740546776881,87.54,142.89,142.8,0.12549]
[1740546777071,81.1,142.88,142.81,7.0023]
[1740546777577,18.64964886,142.87,142.81,7.0023]
[1740546778184,81.1,142.88,142.79,24.76238]
[1740546778386,81.1,142.86,142.79,24.76238]
[1740546780078,81.1,142.86,142.82,20.0]
[1740546780780,87.54,142.89,142.8,18.64964886]
[1740546781281,87.54,142.89,142.82,0.25098]
[1740546783801,87.54,142.89,142.83,24.5046]
[1740546785176,81.1,142.89,142.83,24.5046]
[1740546785781,81.1,142.89,142.76,39.48230571]
[1740546785782,0.12549,142.89,142.81,7.0023]
[1740546786174,20.0,142.87,142.81,7.0023]
[1740546786376,81.1,142.89,142.82,0.25098]
[1740546786684,81.1,142.91,142.85,18.64964886]
[1740546786989,81.1,142.93,142.87,0.25098]
[1740546787292,81.1,142.93,142.86,6.44]
[1740546788180,81.1,142.93,142.87,6.9993]
[1740546791834,81.1,142.93,142.88,0.25098]
[1740546791983,81.1,142.95,142.9,20.0]
[1740546795420,81.1,142.95,142.89,6.9982]
[1740546795619,81.1,142.95,142.88,6.9987]
[1740546796008,81.1,142.95,142.86,6.69098]
[1740546796009,18.64964886,142.93,142.84,1.6117]
[1740546796206,18.64964886,142.9,142.81,7.0023]
[1740546796410,18.64964886,142.9,142.8,7.9757]
[1740546796612,18.64964886,142.88,142.8,14.9783]
[1740546796842,18.64964886,142.86,142.79,7.0032]
[1740546797023,81.1,142.85,142.79,7.0032]
[1740546797196,81.1,142.85,142.77,7.25518]
[1740546798811,88.1004,142.85,142.77,7.0042]
[1740546799040,88.1004,142.85,142.76,8.5403]
[1740546799041,81.1,142.84,142.76,8.5403]
[1740546799212,106.26834886,142.83,142.76,7.0046]
[1740546799631,81.1,142.82,142.75,27.0051]
[1740546801635,81.1,142.82,142.75,27.0681]
[1740546802116,81.1,142.81,142.75,27.0681]
[1740546802320,81.1,142.8,142.75,27.0681]
[1740546804814,81.1,142.8,142.76,0.25098]
[1740546805128,81.1,142.84,142.76,0.25098]
[1740546805441,81.1,142.83,142.76,0.25098]
[1740546805850,81.1,142.83,142.78,0.25098]
[1740546806030,81.1,142.83,142.78,1.91728]
[1740546808549,210.78,142.85,142.79,24.5114]
[1740546808753,210.78,142.85,142.8,0.25098]
[1740546809122,81.1,142.88,142.83,20.25098]
[1740546809331,81.1,142.88,142.81,6.42]
[1740546810051,81.1,142.88,142.82,0.25098]
[1740546810658,81.1,142.88,142.81,6.42]
[1740546810835,81.1,142.88,142.82,7.0018]
[1740546813154,81.1,142.87,142.82,7.0018]
[1740546814958,81.1,142.86,142.8,7.0028]
[1740546815248,81.1,142.85,142.8,7.0028]
[1740546815938,81.1,142.85,142.8,24.5098]
[1740546820857,81.1,142.85,142.8,25.1195676]
[1740546830162,81.1,142.85,142.82,7.0018]
[1740546831063,81.1,142.87,142.82,7.0018]
[1740546831776,81.1,142.87,142.82,24.5063]
[1740546831963,0.03,142.88,142.83,0.25098]
[1740546832160,81.13,142.88,142.82,30.9263]
[1740546834155,81.13,142.88,142.83,0.25098]
[1740546835559,81.13,142.88,142.84,7.0008]
[1740546836911,81.13,142.88,142.85,0.25098]
[1740546836912,0.03,142.88,142.85,0.25098]
[1740546837178,0.03,142.88,142.85,1.83768]
[1740546838649,0.03,142.88,142.86,6.9998]
[1740546839154,0.03,142.88,142.85,7.0001]
[1740546840763,0.03,142.88,142.84,7.0008]
[1740546840952,81.13,142.88,142.84,7.0008]
[1740546841151,81.13,142.88,142.82,7.0018]
[1740546841376,81.1,142.87,142.8,0.6097676]
[1740546841557,25.04464886,142.86,142.8,0.6097676]
[1740546842063,6.42,142.85,142.8,0.6097676]
[1740546842383,81.1,142.84,142.8,0.6097676]
[1740546842569,6.42,142.85,142.8,0.6097676]
[1740546842570,81.1,142.83,142.8,0.6097676]
[1740546843818,81.1,142.82,142.8,0.6097676]
[1740546843979,81.1,142.81,142.8,0.6097676]
[1740546844412,81.1,142.81,142.8,7.6125676]
[1740546845196,81.1,142.85,142.8,25.3705476]
[1740546845710,81.1,142.85,142.81,0.25098]
[1740546847403,81.1,142.85,142.82,7.0018]
[1740546847602,81.13,142.85,142.82,7.0018]
[1740546847814,81.13,142.85,142.82,24.5063]
[1740546847996,0.03,142.85,142.83,0.25098]
[1740546849184,0.03,142.85,142.84,7.0008]
[1740546850714,0.03,142.88,142.87,20.25098]
[1740546850900,0.03,142.89,142.88,0.25098]
[1740546851104,0.03,142.89,142.87,20.0]
[1740546851415,0.03,142.89,142.88,6.9988]
[1740546851624,0.03,142.89,142.88,7.24978]
[1740546853410,81.1,142.94,142.89,0.25098]
[1740546854521,81.1,142.94,142.91,0.25098]
[1740546854821,87.5407,142.98,142.91,0.25098]
[1740546855128,81.1,142.98,142.91,18.90062886]
[1740546856607,81.1,142.98,142.93,0.25098]
[1740546856809,0.03,142.99,142.94,18.64964886]
[1740546857004,0.03,142.99,142.93,89.3]
[1740546857216,0.03,142.99,142.94,0.12549]
[1740546857417,0.03,142.99,142.94,0.25098]
[1740546858630,0.03,142.99,142.95,6.9954]
[1740546860816,0.03,142.99,142.97,6.9944]
[1740546862908,0.03,142.99,142.96,6.9949]
[1740546863426,0.03,142.99,142.97,0.25098]
[1740546863723,0.03,142.99,142.97,18.90062886]
[1740546863927,0.03,142.99,142.98,6.4]
[1740546864430,0.0001,142.99,142.98,25.30062886]
[1740546866525,0.0001,142.99,142.98,32.29452886]
[1740546868427,0.0001,142.99,142.98,35.73347896]
[1740546869441,0.0001,142.99,142.98,13.64488]